fUSD/lending_fUSD_20241216
["ID","MTS","AMOUNT","RATE_DAILY","PERIOD"]
[345617964,1734390632064,-890.39,0.00024296,2]
[345617965,1734390632074,-279.22,0.0002449,2]
[345617966,1734390632084,-271.0,0.000245,2]
[345617967,1734390632093,-5901.7207819,0.000245,10]
[345617968,1734390632109,-5565.63237143,0.000245,10]
[345617969,1734390632122,-4853.45,0.000245,10]
[345617970,1734390632133,-4446.40001196,0.000245,10]
[345617971,1734390632145,-498.92723845,0.000245,10]
[345617998,1734390638501,-1000.0,0.00023875,2]
[345617999,1734390638512,-29013.86959626,0.000245,10]
[345618000,1734390638522,-65035.77375035,0.00024625,2]
[345618001,1734390638531,-1000.0,0.00024658,2]
[345618002,1734390638542,-153.0,0.00024679,2]
[345618003,1734390638559,-153.0,0.00024679,2]
[345618004,1734390638569,-153.0,0.00024683,2]
[345618005,1734390638578,-153.0,0.00024683,2]
[345618006,1734390638588,-150.0,0.00024703,2]
[345618007,1734390638597,-153.0,0.00024712,2]
[345618008,1734390638607,-153.0,0.00024717,2]
[345618009,1734390638615,-153.0,0.00024743,2]
[345618010,1734390638628,-153.0,0.00024743,2]
[345618011,1734390638638,-153.0,0.00024748,2]
[345618012,1734390638647,-153.0,0.00024748,2]
[345618013,1734390638656,-271.0,0.0002475,2]
[345618014,1734390638665,-165.55,0.00024769,2]
[345618015,1734390638675,-6022.78432549,0.00024797,2]
[345618016,1734390638684,-14793.37914557,0.000248,2]
[345618017,1734390638693,-6022.78432546,0.00024808,2]
[345618018,1734390638702,-1500.0,0.00024814,2]
[345618019,1734390638712,-6022.78432546,0.0002482,2]
[345618020,1734390638722,-6022.78432546,0.00024831,2]
[345618021,1734390638731,-2050.62356202,0.0002484,10]
[345618022,1734390638740,-6022.78432546,0.00024843,2]
[345618023,1734390638750,-1812.58782278,0.00024849,10]
[345618024,1734390638759,-1812.58782278,0.00024851,10]
[345618025,1734390638769,-1044.56068672,0.00024851,10]
[345618026,1734390638779,-2050.62356202,0.00024852,10]
[345618027,1734390638788,-6022.78432546,0.00024854,2]
[345618028,1734390638797,-200.0,0.00024855,10]
[345618029,1734390638809,-2050.62356202,0.00024855,10]
[345618030,1734390638819,-200.0,0.00024856,10]
[345618031,1734390638828,-1044.56068672,0.00024856,10]
[345618032,1734390638837,-1812.58782278,0.00024863,10]
[345618033,1734390638847,-6022.78432546,0.00024866,2]
[345618034,1734390638859,-200.0,0.00024869,10]
[345618035,1734390638868,-200.0,0.00024869,10]
[345618036,1734390638878,-1044.56068672,0.00024871,10]
[345618037,1734390638887,-2050.62356202,0.00024871,10]
[345618038,1734390638896,-2050.62356202,0.00024873,10]
[345618039,1734390638907,-1812.58782278,0.00024873,10]
[345618040,1734390638916,-200.0,0.00024874,10]
[345618041,1734390638925,-6022.78432546,0.00024877,2]
[345618042,1734390638936,-1812.58782278,0.0002488,10]
[345618043,1734390638946,-2050.62356202,0.00024886,10]
[345618044,1734390638957,-1044.56068672,0.00024888,10]
[345618046,1734390638966,-6022.78432546,0.00024889,2]
[345618047,1734390638976,-1812.58782278,0.00024892,10]
[345618048,1734390638985,-1044.56068672,0.00024892,10]
[345618049,1734390638995,-500.0,0.00024895,4]
[345618050,1734390639005,-1044.56068672,0.00024895,10]
[345618051,1734390639015,-500.0,0.00024896,4]
[345618052,1734390639024,-500.0,0.00024896,4]
[345618053,1734390639033,-500.0,0.00024896,4]
[345618054,1734390639042,-1768.34,0.00024896,4]
[345618055,1734390639051,-4502.21,0.00024896,4]
[345618056,1734390639062,-542.65,0.00024896,4]
[345618057,1734390639071,-500.0,0.00024896,4]
[345618058,1734390639080,-500.0,0.00024896,4]
[345618059,1734390639089,-500.0,0.00024896,4]
[345618060,1734390639098,-583.73,0.00024896,4]
[345618061,1734390639108,-7500.0,0.00024896,2]
[345618062,1734390639118,-499.68159677,0.00024896,4]
[345618063,1734390639127,-200.0,0.00024896,10]
[345618064,1734390639137,-22468.76,0.00024897,2]
[345618065,1734390639147,-718.82496489,0.00024897,2]
[345618066,1734390639156,-500.0,0.00024898,4]
[345618067,1734390639165,-1000.0,0.00024898,4]
[345618068,1734390639175,-517.77344128,0.00024898,2]
[345618069,1734390639184,-500.0,0.00024898,4]
[345618070,1734390639194,-500.0,0.00024898,4]
[345618071,1734390639203,-500.0,0.00024898,4]
[345618072,1734390639212,-150.0,0.00024899,30]
[345618073,1734390639221,-168.05771569,0.00024899,2]
[345618074,1734390639230,-173.33313622,0.000249,2]
[345618075,1734390639240,-168.05771569,0.000249,2]
[345618076,1734390639249,-6022.78432546,0.000249,2]
[345618077,1734390639258,-153.0,0.000249,31]
[345618078,1734390639268,-153.0,0.000249,31]
[345618079,1734390639277,-153.0,0.000249,31]
[345618080,1734390639286,-153.0,0.000249,31]
[345618081,1734390639296,-153.0,0.000249,31]
[345618082,1734390639306,-153.0,0.000249,31]
[345618083,1734390639315,-153.0,0.000249,31]
[345618084,1734390639324,-153.0,0.000249,31]
[345618085,1734390639334,-153.0,0.000249,31]
[345618086,1734390639343,-153.0,0.000249,31]
[345618087,1734390639352,-153.0,0.000249,31]
[345618088,1734390639362,-153.0,0.000249,31]
[345618090,1734390639517,-153.0,0.000249,31]
[345618091,1734390639527,-153.0,0.000249,31]
[345618092,1734390639536,-153.0,0.000249,31]
[345618093,1734390639548,-812.63154235,0.000249,2]
[345618094,1734390639560,-1500.0,0.00024918,2]
[345618095,1734390639569,-500.0,0.00024997,4]
[345618096,1734390639578,-500.0,0.00024997,4]
[345618097,1734390639587,-500.0,0.00024997,4]
[345618098,1734390639598,-500.0,0.00024997,4]
[345618099,1734390639609,-531.55211922,0.00024997,4]
[345618100,1734390639621,-500.0,0.00024997,4]
[345618101,1734390639632,-500.0,0.00024997,4]
[345618102,1734390639642,-500.0,0.00024997,4]
[345618103,1734390639652,-500.0,0.00024997,4]
[345618104,1734390639661,-500.0,0.00024997,4]
[345618105,1734390639670,-500.0,0.00024997,4]
[345618106,1734390639681,-500.0,0.00024997,4]
[345618107,1734390639691,-500.0,0.00024997,4]
[345618108,1734390639701,-500.0,0.00024997,4]
[345618109,1734390639712,-500.0,0.00024997,4]
[345618110,1734390639722,-500.0,0.00024997,4]
[345618111,1734390639732,-500.0,0.00024997,4]
[345618112,1734390639742,-500.0,0.00024997,4]
[345618113,1734390639753,-500.0,0.00024997,4]
[345618114,1734390639763,-500.0,0.00024997,4]
[345618115,1734390639772,-500.0,0.00024997,4]
[345618116,1734390639782,-500.0,0.00024997,4]
[345618117,1734390639793,-627.55093909,0.00024997,4]
[345618118,1734390639802,-500.0,0.00024997,4]
[345618119,1734390639813,-150.121708,0.00024998,2]
[345618120,1734390639822,-150.121708,0.00024998,6]
[345618121,1734390639832,-150.121708,0.00024998,8]
[345618122,1734390639841,-500.0,0.00024998,4]
[345618123,1734390639851,-500.0,0.00024998,4]
[345618124,1734390639860,-500.0,0.00024998,4]
[345618125,1734390639870,-500.0,0.00024998,4]
[345618126,1734390639880,-516.91422125,0.00024998,4]
[345618127,1734390639891,-500.0,0.00024998,4]
[345618128,1734390639902,-580.29,0.00024998,4]
[345618129,1734390639913,-500.0,0.00024998,4]
[345618130,1734390639923,-500.0,0.00024998,4]
[345618132,1734390639932,-500.0,0.00024998,4]
[345618133,1734390639942,-500.0,0.00024998,4]
[345618134,1734390639952,-500.0,0.00024998,4]
[345618135,1734390639961,-500.0,0.00024998,4]
[345618136,1734390639970,-500.0,0.00024998,4]
[345618137,1734390639980,-500.0,0.00024998,4]
[345618138,1734390639989,-500.0,0.00024998,4]
[345618139,1734390639998,-500.0,0.00024998,4]
[345618141,1734390640007,-500.0,0.00024998,4]
[345618143,1734390640017,-500.0,0.00024998,4]
[345618144,1734390640026,-517.21,0.00024998,4]
[345618145,1734390640035,-500.0,0.00024998,2]
[345618146,1734390640045,-500.0,0.00024998,4]
[345618147,1734390640057,-500.0,0.00024998,4]
[345618149,1734390640066,-500.0,0.00024998,4]
[345618150,1734390640075,-500.0,0.00024998,4]
[345618152,1734390640085,-485.26774851,0.00024998,4]
[345618154,1734390640094,-500.0,0.00024998,4]
[345618156,1734390640103,-500.0,0.00024998,4]
[345618158,1734390640112,-500.0,0.00024998,4]
[345618160,1734390640122,-500.0,0.00024998,4]
[345618162,1734390640131,-591.74,0.00024998,4]
[345618164,1734390640141,-500.0,0.00024998,4]
[345618166,1734390640150,-500.0,0.00024998,4]
[345618168,1734390640160,-500.0,0.00024998,4]
[345618170,1734390640170,-500.0,0.00024998,4]
[345618172,1734390640180,-500.0,0.00024998,4]
[345618174,1734390640189,-229.54190755,0.00024998,4]
[345618176,1734390640200,-500.0,0.00024998,4]
[345618177,1734390640209,-500.0,0.00024998,4]
[345618179,1734390640218,-500.0,0.00024998,4]
[345618181,1734390640227,-500.0,0.00024998,4]
[345618183,1734390640237,-500.0,0.00024998,4]
[345618185,1734390640246,-500.0,0.00024998,4]
[345618187,1734390640255,-500.0,0.00024998,4]
[345618189,1734390640265,-500.0,0.00024998,4]
[345618191,1734390640274,-500.0,0.00024998,4]
[345618193,1734390640283,-500.0,0.00024998,4]
[345618195,1734390640293,-500.0,0.00024998,4]
[345618197,1734390640303,-329.07,0.00024998,4]
[345618199,1734390640317,-500.0,0.00024998,4]
[345618201,1734390640327,-500.0,0.00024998,4]
[345618203,1734390640336,-500.0,0.00024998,4]
[345618204,1734390640346,-500.0,0.00024998,2]
[345618205,1734390640355,-500.0,0.00024998,4]
[345618206,1734390640364,-500.0,0.00024998,4]
[345618207,1734390640373,-500.0,0.00024998,4]
[345618208,1734390640382,-500.0,0.00024998,4]
[345618209,1734390640391,-422.6852312,0.00024998,4]
[345618210,1734390640401,-500.0,0.00024998,4]
[345618211,1734390640410,-500.0,0.00024998,4]
[345618212,1734390640419,-500.0,0.00024998,4]
[345618213,1734390640429,-500.0,0.00024998,4]
[345618214,1734390640438,-522.40376933,0.00024998,4]
[345618215,1734390640447,-500.0,0.00024998,4]
[345618216,1734390640456,-351.69514907,0.00024998,4]
[345618217,1734390640465,-500.0,0.00024998,4]
[345618218,1734390640474,-500.0,0.00024998,4]
[345618219,1734390640483,-500.0,0.00024998,4]
[345618220,1734390640492,-500.0,0.00024998,4]
[345618221,1734390640501,-500.0,0.00024998,4]
[345618222,1734390640510,-298.78277955,0.00024998,4]
[345618223,1734390640519,-500.0,0.00024998,4]
[345618224,1734390640527,-649.37699846,0.00024998,4]
[345618225,1734390640537,-500.0,0.00024998,4]
[345618226,1734390640546,-456.16,0.00024998,4]
[345618227,1734390640559,-500.0,0.00024998,4]
[345618228,1734390640570,-500.0,0.00024998,4]
[345618229,1734390640581,-512.3,0.00024998,4]
[345618230,1734390640591,-500.0,0.00024998,4]
[345618231,1734390640601,-533.32,0.00024998,4]
[345618232,1734390640610,-500.0,0.00024998,4]
[345618233,1734390640619,-500.0,0.00024998,4]
[345618234,1734390640631,-1000.0,0.00024998,2]
[345618235,1734390640640,-500.0,0.00024998,4]
[345618236,1734390640650,-500.0,0.00024998,4]
[345618237,1734390640659,-500.0,0.00024998,4]
[345618238,1734390640668,-500.0,0.00024998,4]
[345618239,1734390640677,-500.0,0.00024998,4]
[345618240,1734390640686,-500.0,0.00024998,4]
[345618241,1734390640695,-500.0,0.00024998,4]
[345618242,1734390640703,-500.0,0.00024998,4]
[345618243,1734390640713,-500.0,0.00024998,4]
[345618244,1734390640722,-1768.34,0.00024998,4]
[345618245,1734390640731,-500.0,0.00024998,4]
[345618246,1734390640740,-500.0,0.00024998,4]
[345618247,1734390640749,-4502.21,0.00024998,4]
[345618248,1734390640758,-500.0,0.00024998,4]
[345618249,1734390640767,-218.03,0.00024998,4]
[345618250,1734390640776,-500.0,0.00024998,4]
[345618251,1734390640786,-500.0,0.00024998,4]
[345618252,1734390640795,-500.0,0.00024998,4]
[345618253,1734390640803,-500.0,0.00024998,4]
[345618254,1734390640815,-500.0,0.00024998,4]
[345618255,1734390640824,-500.0,0.00024998,4]
[345618256,1734390640833,-280.66,0.00024998,4]
[345618257,1734390640842,-503.55719514,0.00024998,4]
[345618258,1734390640851,-500.0,0.00024998,4]
[345618259,1734390640860,-500.0,0.00024998,4]
[345618260,1734390640869,-501.72966183,0.00024998,4]
[345618261,1734390640878,-500.0,0.00024998,4]
[345618262,1734390640887,-500.0,0.00024998,4]
[345618263,1734390640896,-500.0,0.00024998,4]
[345618264,1734390640905,-583.73,0.00024998,4]
[345618265,1734390640914,-500.0,0.00024998,4]
[345618266,1734390640923,-500.0,0.00024998,4]
[345618267,1734390640932,-500.0,0.00024998,4]
[345618268,1734390640941,-405.85,0.00024998,4]
[345618269,1734390640950,-500.0,0.00024998,4]
[345618270,1734390640959,-500.0,0.00024998,4]
[345618271,1734390640969,-500.0,0.00024998,4]
[345618272,1734390640978,-500.0,0.00024998,4]
[345618273,1734390640987,-500.0,0.00024998,4]
[345618274,1734390640996,-500.0,0.00024998,4]
[345618275,1734390641007,-1966.05440804,0.00024998,2]
[345618276,1734390641016,-500.0,0.00024998,4]
[345618277,1734390641025,-500.0,0.00024998,4]
[345618278,1734390641035,-300.0,0.00024999,10]
[345618279,1734390641044,-300.0,0.00024999,10]
[345618280,1734390641053,-300.0,0.00024999,10]
[345618281,1734390641064,-300.0,0.00024999,10]
[345618282,1734390641073,-300.0,0.00024999,10]
[345618283,1734390641082,-1000.0,0.00024999,2]
[345618284,1734390641092,-23725.0,0.00024999,10]
[345618285,1734390641103,-2000.0,0.00024999,2]
[345618286,1734390641112,-500.0,0.00024999,4]
[345618287,1734390641121,-500.0,0.00024999,4]
[345618288,1734390641130,-500.0,0.00024999,4]
[345618289,1734390641140,-515.13188428,0.00024999,4]
[345618290,1734390641149,-500.0,0.00024999,4]
[345618291,1734390641159,-500.0,0.00024999,4]
[345618292,1734390641168,-178.4172085,0.00024999,4]
[345618293,1734390641178,-500.0,0.00024999,4]
[345618294,1734390641186,-500.0,0.00024999,4]
[345618295,1734390641195,-500.0,0.00024999,4]
[345618296,1734390641204,-500.0,0.00024999,4]
[345618297,1734390641216,-500.0,0.00024999,4]
[345618298,1734390641227,-500.0,0.00024999,4]
[345618299,1734390641236,-500.0,0.00024999,4]
[345618300,1734390641246,-500.0,0.00024999,4]
[345618301,1734390641255,-500.0,0.00024999,4]
[345618302,1734390641264,-284.24,0.00024999,4]
[345618303,1734390641273,-500.0,0.00024999,4]
[345618304,1734390641282,-500.0,0.00024999,4]
[345618305,1734390641293,-500.0,0.00024999,4]
[345618306,1734390641301,-500.0,0.00024999,4]
[345618307,1734390641312,-500.0,0.00024999,4]
[345618308,1734390641321,-500.0,0.00024999,4]
[345618309,1734390641330,-500.0,0.00024999,4]
[345618310,1734390641340,-500.0,0.00024999,4]
[345618311,1734390641349,-500.0,0.00024999,4]
[345618312,1734390641359,-500.0,0.00024999,4]
[345618313,1734390641369,-500.0,0.00024999,4]
[345618314,1734390641378,-500.0,0.00024999,4]
[345618315,1734390641388,-500.0,0.00024999,4]
[345618316,1734390641397,-500.0,0.00024999,4]
[345618317,1734390641407,-559.6,0.00024999,4]
[345618318,1734390641416,-500.0,0.00024999,4]
[345618319,1734390641426,-500.0,0.00024999,4]
[345618320,1734390641435,-500.0,0.00024999,4]
[345618321,1734390641446,-500.0,0.00024999,4]
[345618322,1734390641455,-500.0,0.00024999,4]
[345618323,1734390641464,-500.0,0.00024999,4]
[345618324,1734390641473,-500.0,0.00024999,4]
[345618325,1734390641483,-500.0,0.00024999,4]
[345618326,1734390641491,-500.0,0.00024999,4]
[345618327,1734390641500,-500.0,0.00024999,4]
[345618328,1734390641510,-500.0,0.00024999,4]
[345618329,1734390641521,-500.0,0.00024999,4]
[345618330,1734390641530,-500.0,0.00024999,4]
[345618331,1734390641539,-178.34,0.00024999,4]
[345618332,1734390641552,-500.0,0.00024999,4]
[345618333,1734390641563,-500.0,0.00024999,4]
[345618334,1734390641571,-500.0,0.00024999,4]
[345618335,1734390641581,-984.34,0.00024999,2]
[345618336,1734390641591,-500.0,0.00024999,4]
[345618337,1734390641599,-500.0,0.00024999,4]
[345618338,1734390641609,-500.0,0.00024999,4]
[345618339,1734390641618,-290.01,0.00024999,4]
[345618340,1734390641627,-184.12,0.00024999,4]
[345618341,1734390641636,-500.0,0.00024999,4]
[345618342,1734390641646,-284.5,0.00024999,4]
[345618343,1734390641656,-500.0,0.00024999,4]
[345618344,1734390641665,-553.88,0.00024999,4]
[345618345,1734390641674,-500.0,0.00024999,4]
[345618346,1734390641684,-500.0,0.00024999,4]
[345618347,1734390641693,-500.0,0.00024999,4]
[345618348,1734390641702,-500.0,0.00024999,4]
[345618349,1734390641711,-500.0,0.00024999,4]
[345618350,1734390641721,-500.0,0.00024999,4]
[345618351,1734390641731,-500.0,0.00024999,4]
[345618352,1734390641741,-500.0,0.00024999,4]
[345618353,1734390641751,-280.56,0.00024999,4]
[345618354,1734390641760,-500.0,0.00024999,4]
[345618355,1734390641770,-500.0,0.00024999,4]
[345618356,1734390641780,-500.0,0.00024999,4]
[345618357,1734390641790,-500.0,0.00024999,4]
[345618358,1734390641800,-500.0,0.00024999,4]
[345618359,1734390641811,-500.0,0.00024999,4]
[345618360,1734390641820,-500.0,0.00024999,4]
[345618361,1734390641829,-174.16,0.00024999,4]
[345618362,1734390641838,-500.0,0.00024999,4]
[345618363,1734390641848,-500.0,0.00024999,4]
[345618364,1734390641857,-500.0,0.00024999,4]
[345618365,1734390641866,-500.0,0.00024999,4]
[345618366,1734390641875,-500.0,0.00024999,4]
[345618367,1734390641884,-500.0,0.00024999,4]
[345618368,1734390641895,-334.41,0.00024999,4]
[345618369,1734390641905,-500.0,0.00024999,4]
[345618370,1734390641915,-609.72,0.00024999,4]
[345618371,1734390641925,-500.0,0.00024999,4]
[345618372,1734390641937,-542.95,0.00024999,4]
[345618373,1734390641946,-283.33,0.00024999,4]
[345618374,1734390641955,-500.0,0.00024999,4]
[345618375,1734390641963,-188.08,0.00024999,4]
[345618376,1734390641972,-500.0,0.00024999,4]
[345618377,1734390641983,-500.0,0.00024999,4]
[345618378,1734390641992,-500.0,0.00024999,4]
[345618379,1734390642001,-500.0,0.00024999,4]
[345618380,1734390642011,-500.0,0.00024999,4]
[345618381,1734390642021,-354.9,0.00024999,4]
[345618382,1734390642031,-500.0,0.00024999,4]
[345618383,1734390642040,-500.0,0.00024999,4]
[345618384,1734390642049,-500.0,0.00024999,4]
[345618385,1734390642059,-464.38,0.00024999,4]
[345618386,1734390642068,-500.0,0.00024999,4]
[345618387,1734390642078,-421.7,0.00024999,4]
[345618388,1734390642087,-373.05,0.00024999,4]
[345618389,1734390642096,-500.0,0.00024999,4]
[345618390,1734390642107,-500.0,0.00024999,4]
[345618391,1734390642116,-500.0,0.00024999,4]
[345618392,1734390642133,-474.67,0.00024999,4]
[345618393,1734390642144,-1000.0,0.00024999,2]
[345618394,1734390642153,-1000.0,0.00024999,2]
[345618395,1734390642167,-365.7,0.00024999,2]
[345618396,1734390642176,-500.0,0.00024999,4]
[345618397,1734390642185,-500.0,0.00024999,4]
[345618398,1734390642194,-534.38,0.00024999,4]
[345618399,1734390642204,-500.0,0.00024999,4]
[345618400,1734390642213,-500.0,0.00024999,4]
[345618401,1734390642222,-500.0,0.00024999,4]
[345618402,1734390642232,-500.0,0.00024999,4]
[345618403,1734390642241,-500.0,0.00024999,4]
[345618404,1734390642250,-500.0,0.00024999,4]
[345618405,1734390642260,-324.52,0.00024999,4]
[345618406,1734390642270,-500.0,0.00024999,4]
[345618407,1734390642279,-500.0,0.00024999,4]
[345618408,1734390642288,-500.0,0.00024999,4]
[345618409,1734390642297,-500.0,0.00024999,4]
[345618410,1734390642306,-368.7,0.00024999,4]
[345618411,1734390642317,-260.7,0.00024999,4]
[345618412,1734390642327,-500.0,0.00024999,4]
[345618413,1734390642336,-500.0,0.00024999,4]
[345618414,1734390642346,-500.0,0.00024999,4]
[345618415,1734390642356,-500.0,0.00024999,4]
[345618416,1734390642365,-500.0,0.00024999,4]
[345618417,1734390642374,-500.0,0.00024999,4]
[345618418,1734390642383,-500.0,0.00024999,4]
[345618419,1734390642393,-500.0,0.00024999,4]
[345618420,1734390642402,-500.0,0.00024999,4]
[345618422,1734390642411,-500.0,0.00024999,4]
[345618423,1734390642420,-500.0,0.00024999,4]
[345618424,1734390642429,-500.0,0.00024999,4]
[345618425,1734390642439,-500.0,0.00024999,4]
[345618426,1734390642448,-500.0,0.00024999,4]
[345618427,1734390642457,-500.0,0.00024999,4]
[345618429,1734390642466,-500.0,0.00024999,4]
[345618430,1734390642476,-500.0,0.00024999,4]
[345618431,1734390642485,-500.0,0.00024999,4]
[345618432,1734390642494,-500.0,0.00024999,4]
[345618434,1734390642504,-500.0,0.00024999,4]
[345618436,1734390642513,-500.0,0.00024999,4]
[345618437,1734390642521,-500.0,0.00024999,4]
[345618439,1734390642530,-155.22,0.00024999,4]
[345618450,1734390642662,-500.0,0.00024999,4]
[345618452,1734390642672,-500.0,0.00024999,4]
[345618454,1734390642682,-500.0,0.00024999,4]
[345618456,1734390642691,-500.0,0.00024999,4]
[345618458,1734390642700,-500.0,0.00024999,4]
[345618460,1734390642711,-500.0,0.00024999,4]
[345618462,1734390642720,-500.0,0.00024999,4]
[345618464,1734390642729,-500.0,0.00024999,4]
[345618466,1734390642738,-500.0,0.00024999,4]
[345618468,1734390642748,-481.58,0.00024999,4]
[345618470,1734390642757,-1768.34,0.00024999,4]
[345618472,1734390642766,-1768.34,0.00024999,4]
[345618474,1734390642775,-1768.34,0.00024999,4]
[345618476,1734390642785,-1768.34,0.00024999,4]
[345618478,1734390642794,-1768.34,0.00024999,4]
[345618480,1734390642803,-1768.34,0.00024999,4]
[345618481,1734390642814,-1768.34,0.00024999,4]
[345618482,1734390642823,-1768.34,0.00024999,4]
[345618483,1734390642832,-1768.34,0.00024999,4]
[345618484,1734390642841,-1768.34,0.00024999,4]
[345618485,1734390642851,-1768.34,0.00024999,4]
[345618486,1734390642861,-1768.34,0.00024999,4]
[345618487,1734390642870,-1768.34,0.00024999,4]
[345618488,1734390642879,-1768.34,0.00024999,4]
[345618489,1734390642889,-1768.34,0.00024999,4]
[345618490,1734390642899,-1768.34,0.00024999,4]
[345618491,1734390642908,-1768.34,0.00024999,4]
[345618492,1734390642917,-1768.34,0.00024999,4]
[345618493,1734390642926,-1768.34,0.00024999,4]
[345618494,1734390642936,-1768.34,0.00024999,4]
[345618495,1734390642945,-1768.34,0.00024999,4]
[345618496,1734390642954,-1768.35,0.00024999,4]
[345618497,1734390642963,-500.0,0.00024999,4]
[345618498,1734390642973,-500.0,0.00024999,4]
[345618499,1734390642982,-500.0,0.00024999,4]
[345618500,1734390642991,-500.0,0.00024999,4]
[345618501,1734390643000,-500.0,0.00024999,4]
[345618502,1734390643009,-500.0,0.00024999,4]
[345618503,1734390643018,-351.99865954,0.00024999,4]
[345618504,1734390643027,-500.0,0.00024999,4]
[345618506,1734390643037,-500.0,0.00024999,4]
[345618507,1734390643046,-531.1,0.00024999,4]
[345618508,1734390643055,-500.0,0.00024999,4]
[345618509,1734390643066,-999.0,0.00024999,2]
[345618510,1734390643075,-500.0,0.00024999,4]
[345618511,1734390643084,-500.0,0.00024999,4]
[345618512,1734390643093,-500.0,0.00024999,4]
[345618513,1734390643103,-500.0,0.00024999,4]
[345618514,1734390643112,-500.0,0.00024999,4]
[345618515,1734390643121,-474.56377423,0.00024999,4]
[345618516,1734390643131,-500.0,0.00024999,4]
[345618517,1734390643140,-500.0,0.00024999,4]
[345618518,1734390643149,-500.0,0.00024999,4]
[345618520,1734390643158,-623.22,0.00024999,4]
[345618521,1734390643167,-500.0,0.00024999,4]
[345618522,1734390643176,-500.0,0.00024999,4]
[345618523,1734390643186,-500.0,0.00024999,4]
[345618524,1734390643194,-500.0,0.00024999,4]
[345618525,1734390643203,-500.0,0.00024999,4]
[345618526,1734390643212,-500.0,0.00024999,4]
[345618527,1734390643221,-500.0,0.00024999,4]
[345618528,1734390643230,-500.0,0.00024999,4]
[345618529,1734390643239,-500.0,0.00024999,4]
[345618530,1734390643247,-220.74,0.00024999,4]
[345618531,1734390643256,-500.0,0.00024999,4]
[345618532,1734390643265,-281.2353423,0.00024999,4]
[345618533,1734390643274,-500.0,0.00024999,4]
[345618534,1734390643283,-500.0,0.00024999,4]
[345618535,1734390643292,-348.06,0.00024999,4]
[345618536,1734390643301,-500.0,0.00024999,4]
[345618537,1734390643311,-500.0,0.00024999,4]
[345618538,1734390643320,-500.0,0.00024999,4]
[345618539,1734390643329,-500.0,0.00024999,4]
[345618540,1734390643338,-500.0,0.00024999,4]
[345618541,1734390643347,-500.0,0.00024999,4]
[345618542,1734390643356,-500.0,0.00024999,4]
[345618543,1734390643365,-500.0,0.00024999,4]
[345618544,1734390643373,-500.0,0.00024999,4]
[345618545,1734390643382,-500.0,0.00024999,4]
[345618546,1734390643391,-177.63,0.00024999,4]
[345618547,1734390643400,-500.0,0.00024999,4]
[345618548,1734390643409,-500.0,0.00024999,4]
[345618549,1734390643418,-500.0,0.00024999,4]
[345618550,1734390643426,-500.0,0.00024999,4]
[345618551,1734390643435,-583.73,0.00024999,4]
[345618552,1734390643444,-583.73,0.00024999,4]
[345618553,1734390643453,-583.73,0.00024999,4]